fUST/lending_fUST_20240927
["ID","MTS","AMOUNT","RATE_DAILY","PERIOD"]
[339245843,1727397043742,-155.171709,0.000203,4]
[339245844,1727397043752,-271.331708,0.00020368,2]
[339245845,1727397043762,-271.331706,0.00020368,2]
[339245846,1727397043773,-151.0,0.0002039,2]
[339245847,1727397043782,-1653.76125738,0.00020489,3]
[339245848,1727397043794,-150.112233,0.000205,3]
[339245849,1727397043804,-150.112233,0.000205,3]
[339245850,1727397043814,-1000.0,0.00020521,2]
[339245851,1727397043824,-151.0,0.00020537,2]
[339245852,1727397043834,-151.0,0.00020537,2]
[339245853,1727397043845,-151.0,0.00020537,2]
[339245854,1727397043855,-151.0,0.00020537,2]
[339245855,1727397043865,-151.0,0.00020537,2]
[339245856,1727397043874,-159.956632,0.00020537,2]
[339245857,1727397043883,-1653.76125738,0.00020537,3]
[339245858,1727397043892,-6054.135824,0.00020542,2]
[339245859,1727397043902,-1000.0,0.00020547,2]
[339245860,1727397043911,-225.06,0.00020547,2]
[339245861,1727397043920,-500.0,0.00020547,2]
[339245862,1727397043930,-500.0,0.00020547,2]
[339245863,1727397043940,-2383.3,0.00020547,2]
[339245864,1727397043951,-500.0,0.00020547,2]
[339245865,1727397043961,-500.0,0.00020547,2]
[339245866,1727397043970,-648.21850645,0.00020547,2]
[339245867,1727397043979,-863.21,0.00020547,2]
[339245868,1727397043989,-500.0,0.00020547,2]
[339245869,1727397043998,-500.0,0.00020547,2]
[339245870,1727397044007,-2286.55,0.00020547,2]
[339245871,1727397044017,-536.22,0.00020547,2]
[339245872,1727397044026,-779.89,0.00020547,2]
[339245873,1727397044036,-615.05320917,0.00020547,2]
[339245874,1727397044047,-1424.76,0.00020547,2]
[339245875,1727397044059,-500.0,0.00020547,2]
[339245876,1727397044068,-1585.23,0.00020547,2]
[339245877,1727397044079,-764.24,0.00020547,2]
[339245878,1727397044090,-500.0,0.00020547,2]
[339245879,1727397044099,-1447.04,0.00020547,2]
[339245880,1727397044110,-151.0,0.00020547,2]
[339245881,1727397044120,-318.78,0.00020547,2]
[339245882,1727397044129,-151.0,0.00020547,2]
[339245883,1727397044138,-631.98,0.00020547,2]
[339245884,1727397044148,-24486.25,0.00020547,2]
[339245885,1727397044158,-4290.4,0.00020547,2]
[339245886,1727397044167,-6054.135824,0.00020584,2]
[339245887,1727397044178,-153.0,0.00020603,2]
[339245888,1727397044188,-14644.14925646,0.0002061,2]
[339245889,1727397044199,-2000.0,0.0002062,2]
[339245890,1727397044209,-151.0,0.00020658,2]
[339245891,1727397044218,-150.112233,0.000207,2]
[339245892,1727397044227,-227.14,0.000207,2]
[339245893,1727397044237,-150.112233,0.000207,4]
[339245894,1727397044246,-1000.0,0.000207,2]
[339245895,1727397044255,-154.79661188,0.00020729,2]
[339245896,1727397044264,-470.0,0.0002075,2]
[339245897,1727397044274,-1653.76125738,0.00020811,3]
[339245898,1727397044283,-1000.0,0.00020821,2]
[339245899,1727397044292,-225.06,0.00020821,2]
[339245900,1727397044302,-500.0,0.00020821,2]
[339245901,1727397044311,-500.0,0.00020821,2]
[339245902,1727397044320,-2383.3,0.00020821,2]
[339245903,1727397044329,-500.0,0.00020821,2]
[339245904,1727397044338,-500.0,0.00020821,2]
[339245905,1727397044348,-863.21,0.00020821,2]
[339245906,1727397044358,-500.0,0.00020821,2]
[339245907,1727397044367,-500.0,0.00020821,2]
[339245908,1727397044376,-2286.55,0.00020821,2]
[339245909,1727397044385,-151.107382,0.00020821,2]
[339245910,1727397044394,-151.107382,0.00020821,2]
[339245911,1727397044402,-151.0,0.00020821,2]
[339245912,1727397044412,-151.0,0.00020821,2]
[339245913,1727397044420,-206.572746,0.00020821,2]
[339245914,1727397044429,-536.22,0.00020821,2]
[339245915,1727397044439,-206.572746,0.00020821,2]
[339245916,1727397044451,-779.89,0.00020821,2]
[339245917,1727397044460,-1424.76,0.00020821,2]
[339245918,1727397044470,-208.28756696,0.00020821,2]
[339245919,1727397044479,-1585.23,0.00020821,2]
[339245920,1727397044488,-151.0,0.00020821,2]
[339245921,1727397044498,-764.24,0.00020821,2]
[339245922,1727397044507,-500.0,0.00020821,2]
[339245923,1727397044516,-151.0,0.00020821,2]
[339245924,1727397044525,-1447.04,0.00020821,2]
[339245925,1727397044534,-631.98,0.00020821,2]
[339245926,1727397044544,-24486.25,0.00020821,2]
[339245927,1727397044554,-4290.4,0.00020821,2]
[339245928,1727397044567,-6054.13582402,0.00020897,2]
[339245929,1727397044576,-152.68017911,0.00020899,2]
[339245930,1727397044586,-150.112233,0.000209,2]
[339245931,1727397044594,-150.112233,0.000209,4]
[339245932,1727397044604,-151.0,0.00020927,2]
[339245933,1727397044613,-153.0,0.00020932,2]
[339245934,1727397044623,-1000.0,0.00020949,2]
[339245935,1727397044634,-1000.0,0.00020949,2]
[339245936,1727397044643,-1000.0,0.00020949,2]
[339245937,1727397044652,-1000.0,0.00020949,2]
[339245938,1727397044662,-1000.0,0.00020949,2]
[339245939,1727397044671,-1000.0,0.00020949,2]
[339245940,1727397044681,-1114.45573449,0.00020949,2]
[339245941,1727397044690,-151.0,0.00020949,2]
[339245942,1727397044699,-500.0,0.00020973,2]
[339245943,1727397044709,-151.0,0.0002099,2]
[339245944,1727397044718,-151.0,0.0002099,2]
[339245945,1727397044727,-151.0,0.0002099,2]
[339245946,1727397044737,-500.0,0.00021,30]
[339245947,1727397044749,-500.0,0.00021,30]
[339245948,1727397044759,-711.85023632,0.00021,30]
[339245949,1727397044768,-500.0,0.00021,30]
[339245950,1727397044777,-607.21200268,0.00021,30]
[339245951,1727397044786,-500.0,0.00021,30]
[339245952,1727397044795,-500.0,0.00021,30]
[339245953,1727397044804,-800.0,0.00021,30]
[339245954,1727397044814,-3000.0,0.00021,2]
[339245955,1727397044823,-248.409515,0.00021,2]
[339245956,1727397044832,-248.409515,0.00021,2]
[339245957,1727397044841,-4996.49053934,0.00021,5]
[339245958,1727397044992,-898.78971019,0.00021,5]
[339245959,1727397045004,-1012.54729621,0.00021,5]
[339245960,1727397045013,-259.77248991,0.00021,2]
[339245961,1727397045022,-234.10467923,0.00021,2]
[339245962,1727397045031,-302.78817196,0.00021,2]
[339245963,1727397045045,-9893.93605869,0.00021,2]
[339245964,1727397045055,-1205.46964477,0.00021,5]
[339245965,1727397045210,-500.0,0.00019178,2]
[339245966,1727397045220,-500.0,0.00019178,2]
[339245967,1727397045229,-500.0,0.00019178,2]
[339245968,1727397045239,-393.22196267,0.00019452,2]
[339245969,1727397045249,-500.0,0.00019452,2]
[339245970,1727397045259,-7804.53035523,0.00021,5]
[339245971,1727397045269,-151.0,0.00021,2]
[339245972,1727397045278,-216.860988,0.00021,2]
[339245973,1727397045288,-276.82944441,0.00021,30]
[339245974,1727397045297,-500.0,0.00021,30]
[339245975,1727397045306,-500.0,0.00021,30]
[339245976,1727397045316,-500.0,0.00021,30]
[339245977,1727397045325,-500.0,0.00021,30]
[339245978,1727397045334,-500.0,0.00021,30]
[339245979,1727397045343,-500.0,0.00021,30]
[339245980,1727397045353,-500.0,0.00021,30]
[339245981,1727397045362,-508.1342584,0.00021,30]
[339245982,1727397045371,-539.59614278,0.00021,30]
[339245983,1727397045380,-500.0,0.00021,30]
[339245984,1727397045389,-500.0,0.00021,30]
[339245985,1727397045399,-500.0,0.00021,30]
[339245986,1727397045408,-500.0,0.00021,30]
[339245987,1727397045417,-500.0,0.00021,30]
[339245988,1727397045426,-939.74150048,0.00021,30]
[339245989,1727397045435,-700.0,0.00021,30]
[339245990,1727397045547,-154.74467229,0.00021,30]
[339245991,1727397045559,-154.74467129,0.00021,30]
[339245992,1727397045572,-3000.0,0.0002101,2]
[339245993,1727397045581,-1653.76125738,0.0002101,3]
[339245994,1727397045590,-3000.0,0.0002102,2]
[339245995,1727397045599,-3000.0,0.0002103,2]
[339245996,1727397045610,-151.0,0.0002103,2]
[339245997,1727397045619,-3000.0,0.0002104,2]
[339245998,1727397045628,-3000.0,0.0002105,2]
[339246000,1727397045639,-3000.0,0.0002106,2]
[339246002,1727397045648,-3000.0,0.0002107,2]
[339246003,1727397045658,-420.0,0.00021073,2]
[339246004,1727397045667,-3000.0,0.0002108,2]
[339246005,1727397045676,-3000.0,0.0002109,2]
[339246006,1727397045686,-775.67627402,0.00021095,2]
[339246007,1727397045695,-225.06,0.00021095,2]
[339246008,1727397045705,-500.0,0.00021095,2]
[339246009,1727397045715,-500.0,0.00021095,2]
[339246010,1727397045725,-2383.3,0.00021095,2]
[339246011,1727397045734,-500.0,0.00021095,2]
[339246012,1727397045743,-500.0,0.00021095,2]
[339246014,1727397045752,-151.0,0.00021095,2]
[339246015,1727397045761,-500.0,0.00021095,2]
[339246016,1727397045770,-500.0,0.00021095,2]
[339246017,1727397045780,-189.222046,0.00021095,2]
[339246018,1727397045789,-203.678664,0.00021095,2]
[339246019,1727397045798,-2286.55,0.00021095,2]
[339246020,1727397045807,-271.297552,0.00021095,2]
[339246021,1727397045816,-1000.0,0.00021095,2]
[339246022,1727397045826,-1000.0,0.00021095,2]
[339246023,1727397045835,-1000.0,0.00021095,2]
[339246024,1727397045844,-1000.0,0.00021095,2]
[339246025,1727397045853,-1000.0,0.00021095,2]
[339246026,1727397045863,-1000.0,0.00021095,2]
[339246027,1727397045872,-1000.0,0.00021095,2]
[339246028,1727397045882,-1000.0,0.00021095,2]
[339246029,1727397045891,-1000.0,0.00021095,2]
[339246030,1727397045902,-1000.0,0.00021095,2]
[339246031,1727397045911,-1000.0,0.00021095,2]
[339246032,1727397045920,-1000.0,0.00021095,2]
[339246033,1727397045929,-1000.0,0.00021095,2]
[339246034,1727397045938,-1000.0,0.00021095,2]
[339246035,1727397045947,-1000.0,0.00021095,2]
[339246036,1727397045958,-1000.0,0.00021095,2]
[339246037,1727397045967,-963.020065,0.00021095,2]
[339246038,1727397045977,-206.572746,0.00021095,2]
[339246039,1727397045986,-536.22,0.00021095,2]
[339246040,1727397045995,-206.572746,0.00021095,2]
[339246041,1727397046004,-779.89,0.00021095,2]
[339246042,1727397046014,-1424.76,0.00021095,2]
[339246043,1727397046023,-1585.23,0.00021095,2]
[339246044,1727397046033,-151.0,0.00021095,2]
[339246045,1727397046042,-764.24,0.00021095,2]
[339246046,1727397046051,-619.36062787,0.00021095,2]
[339246047,1727397046061,-188.673713,0.00021095,2]
[339246048,1727397046070,-1447.04,0.00021095,2]
[339246049,1727397046079,-151.0,0.00021095,2]
[339246050,1727397046088,-631.98,0.00021095,2]
[339246051,1727397046098,-24486.25,0.00021095,2]
[339246052,1727397046107,-4290.4,0.00021095,2]
[339246053,1727397046116,-151.107382,0.00021099,2]
[339246054,1727397046125,-151.107382,0.00021099,2]
[339246055,1727397046134,-156.60938,0.00021099,2]
[339246056,1727397046143,-150.112233,0.000211,3]
[339246057,1727397046153,-3000.0,0.000211,2]
[339246058,1727397046163,-3000.0,0.0002111,2]
[339246059,1727397046172,-3000.0,0.0002112,2]
[339246060,1727397046181,-3000.0,0.0002113,2]
[339246061,1727397046191,-151.0,0.0002113,2]
[339246062,1727397046199,-3000.0,0.0002114,2]
[339246063,1727397046210,-3000.0,0.0002115,2]
[339246064,1727397046219,-248.409515,0.0002115,2]
[339246065,1727397046228,-248.409515,0.0002115,2]
[339246066,1727397046237,-204.3582581,0.00021159,2]
[339246067,1727397046247,-10222.90054676,0.00021159,2]
[339246068,1727397046256,-151.0,0.00021159,2]
[339246069,1727397046265,-3000.0,0.0002116,2]
[339246070,1727397046274,-3000.0,0.0002117,2]
[339246071,1727397046284,-151.23347702,0.0002117,2]
[339246072,1727397046293,-3000.0,0.0002118,2]
[339246073,1727397046302,-3000.0,0.0002119,2]
[339246074,1727397046312,-151.0,0.00021195,2]
[339246075,1727397046321,-506.75742959,0.000212,2]
[339246076,1727397046330,-150.112233,0.000212,3]
[339246077,1727397046339,-3000.0,0.000212,2]
[339246078,1727397046348,-177.052773,0.000212,2]
[339246079,1727397046358,-3000.0,0.0002121,2]
[339246080,1727397046367,-3000.0,0.0002122,2]
[339246081,1727397046376,-470.0,0.0002123,2]
[339246082,1727397046386,-3000.0,0.0002123,2]
[339246083,1727397046396,-300.0,0.0002124,2]
[339246084,1727397046405,-3000.0,0.0002124,2]
[339246085,1727397046416,-398.32259066,0.0002125,2]
[339246086,1727397046425,-3000.0,0.0002125,2]
[339246087,1727397046435,-3000.0,0.0002126,2]
[339246088,1727397046444,-3000.0,0.0002127,2]
[339246089,1727397046453,-3000.0,0.0002128,2]
[339246090,1727397046462,-3000.0,0.0002129,2]
[339246091,1727397046471,-150.112233,0.000213,2]
[339246092,1727397046480,-3000.0,0.000213,2]
[339246093,1727397046489,-151.0,0.000213,2]
[339246094,1727397046499,-3000.0,0.0002131,2]
[339246095,1727397046509,-600.0,0.00021318,3]
[339246096,1727397046519,-3000.0,0.0002132,2]
[339246097,1727397046530,-3000.0,0.0002133,2]
[339246098,1727397046542,-3000.0,0.0002134,2]
[339246099,1727397046553,-306.0,0.00021342,2]
[339246100,1727397046565,-151.0,0.0002135,2]
[339246101,1727397046574,-151.0,0.0002135,2]
[339246102,1727397046584,-3000.0,0.0002135,2]
[339246103,1727397046594,-3000.0,0.0002136,2]
[339246104,1727397046604,-225.06,0.00021369,2]
[339246105,1727397046614,-500.0,0.00021369,2]
[339246106,1727397046625,-500.0,0.00021369,2]
[339246107,1727397046636,-2383.3,0.00021369,2]
[339246108,1727397046645,-500.0,0.00021369,2]
[339246109,1727397046656,-500.0,0.00021369,2]
[339246110,1727397046665,-151.0,0.00021369,2]
[339246111,1727397046675,-500.0,0.00021369,2]
[339246112,1727397046684,-500.0,0.00021369,2]
[339246113,1727397046694,-2286.55,0.00021369,2]
[339246114,1727397046707,-151.107382,0.00021369,2]
[339246115,1727397046717,-151.107382,0.00021369,2]
[339246116,1727397046727,-206.572746,0.00021369,2]
[339246117,1727397046738,-536.22,0.00021369,2]
[339246118,1727397046748,-206.572746,0.00021369,2]
[339246119,1727397046759,-779.89,0.00021369,2]
[339246120,1727397046768,-1424.76,0.00021369,2]
[339246121,1727397046777,-1585.23,0.00021369,2]
[339246122,1727397046786,-276.77897,0.00021369,2]
[339246123,1727397046796,-764.24,0.00021369,2]
[339246124,1727397046805,-1447.04,0.00021369,2]
[339246125,1727397046814,-151.0,0.00021369,2]
[339246126,1727397046825,-631.98,0.00021369,2]
[339246127,1727397046836,-24486.25,0.00021369,2]
[339246128,1727397046848,-4290.4,0.00021369,2]
[339246129,1727397046859,-3000.0,0.0002137,2]
[339246130,1727397046868,-151.0,0.0002137,2]
[339246131,1727397046878,-3000.0,0.0002138,2]
[339246132,1727397046888,-3000.0,0.0002139,2]
[339246133,1727397046898,-248.409515,0.0002139,2]
[339246134,1727397046908,-248.409515,0.0002139,2]
[339246135,1727397046918,-3000.0,0.000214,2]
[339246136,1727397046928,-3000.0,0.0002141,2]
[339246137,1727397046937,-3000.0,0.0002142,2]
[339246138,1727397046947,-5287.053779,0.0002143,2]
[339246139,1727397046957,-151.0,0.00021463,2]
[339246140,1727397046966,-336.0,0.0002147,4]
[339246141,1727397046975,-587.0,0.00021487,2]
[339246142,1727397046985,-150.112233,0.000215,3]
[339246143,1727397046994,-549.04192041,0.00021521,2]
[339246144,1727397047003,-1500.0,0.00021522,2]
[339246145,1727397047013,-485.0,0.00021545,2]
[339246146,1727397047023,-485.0,0.00021545,2]
[339246147,1727397047033,-485.0,0.00021545,2]
[339246148,1727397047044,-485.0,0.00021545,2]
[339246149,1727397047054,-485.0,0.00021545,2]
[339246150,1727397047064,-485.0,0.00021545,2]
[339246151,1727397047074,-485.0,0.00021545,2]
[339246152,1727397047084,-485.0,0.00021545,2]
[339246153,1727397047093,-485.0,0.00021545,2]
[339246154,1727397047103,-485.0,0.00021545,2]
[339246155,1727397047113,-485.0,0.00021545,2]
[339246156,1727397047123,-485.0,0.00021545,2]
[339246157,1727397047134,-485.0,0.00021545,2]
[339246158,1727397047144,-485.0,0.00021545,2]
[339246159,1727397047153,-153.0,0.00021545,2]
[339246160,1727397047170,-153.0,0.00021545,2]
[339246161,1727397047184,-153.0,0.00021545,2]
[339246162,1727397047193,-153.0,0.00021545,2]
[339246163,1727397047204,-485.0,0.00021546,2]
[339246164,1727397047214,-485.0,0.00021546,2]
[339246165,1727397047224,-485.0,0.00021546,2]
[339246166,1727397047233,-485.0,0.00021546,2]
[339246167,1727397047243,-485.0,0.00021546,2]
[339246168,1727397047253,-485.0,0.00021546,2]
[339246169,1727397047262,-485.0,0.00021546,2]
[339246170,1727397047272,-485.0,0.00021546,2]
[339246171,1727397047281,-485.0,0.00021546,2]
[339246172,1727397047291,-485.0,0.00021546,2]
[339246173,1727397047301,-485.0,0.00021546,2]
[339246174,1727397047311,-485.0,0.00021546,2]
[339246175,1727397047322,-485.0,0.00021546,2]
[339246176,1727397047331,-485.0,0.00021546,2]
[339246177,1727397047342,-153.0,0.00021546,2]
[339246178,1727397047352,-153.0,0.00021546,2]
[339246179,1727397047362,-153.0,0.00021546,2]
[339246180,1727397047372,-153.0,0.00021546,2]
[339246181,1727397047381,-485.0,0.00021547,2]
[339246182,1727397047391,-485.0,0.00021547,2]
[339246183,1727397047401,-485.0,0.00021547,2]
[339246184,1727397047411,-485.0,0.00021547,2]
[339246185,1727397047420,-485.0,0.00021547,2]
[339246186,1727397047430,-485.0,0.00021547,2]
[339246187,1727397047439,-485.0,0.00021547,2]
[339246188,1727397047449,-485.0,0.00021547,2]
[339246189,1727397047460,-485.0,0.00021547,2]
[339246190,1727397047470,-485.0,0.00021547,2]
[339246191,1727397047480,-485.0,0.00021547,2]
[339246192,1727397047490,-485.0,0.00021547,2]
[339246193,1727397047500,-485.0,0.00021547,2]
[339246194,1727397047509,-485.0,0.00021547,2]
[339246195,1727397047519,-153.0,0.00021547,2]
[339246196,1727397047529,-153.0,0.00021547,2]
[339246197,1727397047539,-153.0,0.00021547,2]
[339246198,1727397047549,-153.0,0.00021547,2]
[339246199,1727397047563,-485.0,0.00021547,2]
[339246200,1727397047573,-485.0,0.00021547,2]
[339246201,1727397047582,-485.0,0.00021547,2]
[339246202,1727397047592,-485.0,0.00021547,2]
[339246203,1727397047602,-485.0,0.00021547,2]
[339246204,1727397047611,-485.0,0.00021547,2]
[339246205,1727397047620,-485.0,0.00021547,2]
[339246206,1727397047630,-485.0,0.00021547,2]
[339246207,1727397047641,-485.0,0.00021547,2]
[339246208,1727397047651,-485.0,0.00021547,2]
[339246209,1727397047662,-485.0,0.00021547,2]
[339246210,1727397047672,-485.0,0.00021547,2]
[339246211,1727397047682,-485.0,0.00021547,2]
[339246212,1727397047691,-485.0,0.00021547,2]
[339246213,1727397047701,-153.0,0.00021547,2]
[339246214,1727397047712,-153.0,0.00021547,2]
[339246215,1727397047722,-153.0,0.00021547,2]
[339246216,1727397047733,-153.0,0.00021547,2]
[339246217,1727397047742,-150.112233,0.000216,4]
[339246218,1727397047752,-1000.0,0.00021628,2]
[339246219,1727397047761,-225.06,0.00021643,2]
[339246220,1727397047771,-500.0,0.00021643,2]
[339246221,1727397047780,-500.0,0.00021643,2]
[339246222,1727397047794,-2383.3,0.00021643,2]
[339246223,1727397047804,-180.45878391,0.00021643,2]
[339246224,1727397047813,-500.0,0.00021643,2]
[339246225,1727397047822,-151.0,0.00021643,2]
[339246226,1727397047832,-500.0,0.00021643,2]
[339246227,1727397047842,-613.92892393,0.00021643,2]
[339246228,1727397047852,-2286.55,0.00021643,2]
[339246229,1727397047862,-536.22,0.00021643,2]
[339246230,1727397047872,-779.89,0.00021643,2]
[339246231,1727397047882,-1424.76,0.00021643,2]
[339246232,1727397047891,-1585.23,0.00021643,2]
[339246233,1727397047902,-764.24,0.00021643,2]
[339246234,1727397047911,-1447.04,0.00021643,2]
[339246235,1727397047923,-631.98,0.00021643,2]
[339246236,1727397047933,-24486.25,0.00021643,2]
[339246237,1727397047943,-151.0,0.00021643,2]
[339246238,1727397047956,-4290.4,0.00021643,2]
[339246239,1727397047966,-436.94985077,0.00021664,2]
[339246240,1727397047975,-1000.0,0.00021695,2]
[339246241,1727397047985,-150.112233,0.000217,2]
[339246242,1727397047994,-470.0,0.0002171,2]
[339246243,1727397048004,-151.0,0.00021731,2]
[339246244,1727397048014,-1000.0,0.00021742,2]
[339246245,1727397048024,-1217.0,0.00021748,2]
[339246246,1727397048033,-11598.877,0.00021748,2]
[339246247,1727397048043,-151.107382,0.00021748,2]
[339246248,1727397048052,-151.107382,0.00021748,2]
[339246249,1727397048063,-153.0,0.00021781,2]
[339246250,1727397048073,-476.03070274,0.00021797,2]
[339246251,1727397048083,-1127.88566721,0.0002182,2]
[339246252,1727397048093,-466.10162267,0.00021826,2]
[339246253,1727397048103,-1287.18,0.0002189,7]
[339246254,1727397048274,-1287.18,0.0002189,7]
[339246255,1727397048284,-1287.18,0.0002189,7]
[339246256,1727397048293,-1287.18,0.0002189,7]
[339246257,1727397048303,-1287.18,0.0002189,7]
[339246258,1727397048314,-1287.18,0.0002189,7]
[339246259,1727397048323,-1287.18,0.0002189,7]
[339246260,1727397048334,-1287.18,0.0002189,7]
[339246261,1727397048344,-1287.18,0.0002189,7]
[339246262,1727397048354,-1287.18,0.0002189,7]
[339246263,1727397048363,-1287.18,0.0002189,7]
[339246264,1727397048373,-1287.18,0.0002189,7]
[339246265,1727397048382,-1287.18,0.0002189,7]
[339246266,1727397048391,-1287.18,0.0002189,7]
[339246267,1727397048401,-1287.18,0.0002189,7]
[339246268,1727397048410,-1287.18,0.0002189,7]
[339246269,1727397048420,-1287.18,0.0002189,7]
[339246270,1727397048429,-1287.18,0.0002189,7]
[339246271,1727397048439,-1287.18,0.0002189,7]
[339246272,1727397048449,-1287.18,0.0002189,7]
[339246273,1727397048459,-1287.18,0.0002189,7]
[339246274,1727397048468,-1287.18,0.0002189,7]
[339246275,1727397048478,-1287.18,0.0002189,7]
[339246276,1727397048487,-1287.29394155,0.0002189,7]
[339246277,1727397048497,-206.572746,0.0002189,2]
[339246278,1727397048506,-206.572746,0.0002189,2]
[339246279,1727397048517,-151.0,0.0002189,2]
[339246280,1727397048527,-7016.37522707,0.000219,2]
[339246281,1727397048537,-150.112233,0.000219,5]
[339246282,1727397048546,-152.65,0.000219,31]
[339246283,1727397048557,-152.65,0.000219,31]
[339246284,1727397048570,-152.65,0.000219,31]
[339246285,1727397048579,-152.65,0.000219,31]
[339246286,1727397048589,-152.65,0.000219,31]
[339246287,1727397048598,-152.65,0.000219,31]
[339246288,1727397048608,-152.65,0.000219,31]
[339246289,1727397048617,-152.65,0.000219,31]
[339246290,1727397048628,-152.65,0.000219,31]
[339246291,1727397048638,-152.65,0.000219,31]
[339246292,1727397048648,-152.65,0.000219,31]
[339246293,1727397048658,-152.65,0.000219,31]
[339246294,1727397048667,-152.65,0.000219,31]
[339246295,1727397048677,-152.65,0.000219,31]
[339246296,1727397048686,-151.0,0.000219,2]
[339246297,1727397048697,-248.409515,0.000219,2]
[339246298,1727397048708,-248.409515,0.000219,2]
[339246299,1727397048718,-3391.29,0.000219,6]
[339246300,1727397048730,-13290.709999,0.000219,7]
[339246301,1727397048740,-246.802422,0.00021907,2]
[339246302,1727397048750,-500.0,0.00021917,2]
[339246303,1727397048760,-504.31479843,0.00021917,2]
[339246304,1727397048770,-225.06,0.00021917,2]
[339246305,1727397048779,-500.0,0.00021917,2]
[339246306,1727397048789,-500.0,0.00021917,2]
[339246307,1727397048799,-500.0,0.00021917,2]
[339246308,1727397048809,-2383.3,0.00021917,2]
[339246309,1727397048819,-500.0,0.00021917,2]
[339246310,1727397048829,-500.0,0.00021917,120]
[339246311,1727397048839,-500.0,0.00021917,120]
[339246312,1727397048849,-579.09,0.00021917,120]
[339246313,1727397048859,-500.0,0.00021917,2]
[339246314,1727397048869,-750.99,0.00021917,2]
[339246315,1727397048878,-750.99,0.00021917,2]
[339246316,1727397048887,-750.99,0.00021917,2]
[339246317,1727397048897,-750.99,0.00021917,2]
[339246318,1727397048907,-750.99,0.00021917,2]
[339246319,1727397048918,-750.99,0.00021917,2]
[339246320,1727397048927,-750.99,0.00021917,2]
[339246321,1727397048937,-750.99,0.00021917,2]
[339246322,1727397048947,-750.99,0.00021917,2]
[339246323,1727397048956,-750.99,0.00021917,2]
[339246324,1727397048966,-750.99,0.00021917,2]
[339246325,1727397048975,-750.99,0.00021917,2]
[339246326,1727397048985,-750.99,0.00021917,2]
[339246327,1727397048996,-750.99,0.00021917,2]
[339246328,1727397049006,-750.99,0.00021917,2]
[339246329,1727397049016,-750.99,0.00021917,2]
[339246330,1727397049025,-750.99,0.00021917,2]
[339246331,1727397049034,-750.99,0.00021917,2]
[339246332,1727397049044,-750.99,0.00021917,2]
[339246333,1727397049053,-750.99,0.00021917,2]
[339246334,1727397049063,-750.99,0.00021917,2]
[339246335,1727397049072,-750.99,0.00021917,2]
[339246336,1727397049082,-750.99,0.00021917,2]
[339246337,1727397049092,-751.15171098,0.00021917,2]
[339246338,1727397049102,-1000.0,0.00021917,5]
[339246339,1727397049111,-1000.0,0.00021917,5]
[339246340,1727397049121,-1000.0,0.00021917,5]
[339246341,1727397049132,-1000.0,0.00021917,5]
[339246342,1727397049142,-817.6377036,0.00021917,5]
[339246343,1727397049152,-2286.55,0.00021917,2]
[339246344,1727397049161,-536.22,0.00021917,2]
[339246345,1727397049170,-500.5765147,0.00021917,2]